bitfinex/quotes_BTCUSD_20250314
["timestamp","ask_amount","ask_price","bid_price","bid_amount"]
[1741926323949,0.00129232,82178.0,82177.0,0.15207501]
[1741926324151,0.00129232,82178.0,82177.0,0.14707501]
[1741926324568,0.00129232,82178.0,82177.0,0.15307501]
[1741926324970,0.00129232,82178.0,82177.0,0.14707501]
[1741926325364,0.00129232,82178.0,82177.0,0.15207501]
[1741926325772,0.00029232,82178.0,82177.0,0.15207501]
[1741926325985,0.00029232,82178.0,82177.0,0.16224301]
[1741926326207,0.00029232,82178.0,82177.0,0.16524301]
[1741926328336,0.00029232,82178.0,82177.0,0.16645971]
[1741926328530,0.00029232,82178.0,82177.0,0.16345971]
[1741926328734,0.00029232,82178.0,82177.0,0.16045971]
[1741926329068,0.00029232,82178.0,82177.0,0.1579229]
[1741926329417,0.00029232,82178.0,82177.0,0.16832249]
[1741926329785,0.00029232,82178.0,82177.0,0.24692249]
[1741926329988,0.00029232,82178.0,82177.0,0.24570579]
[1741926342185,0.00029232,82178.0,82177.0,0.15493779]
[1741926342463,0.00029232,82178.0,82177.0,0.24800579]
[1741926343679,0.00129232,82178.0,82177.0,0.01873779]
[1741926344037,0.31346032,82178.0,82177.0,0.01873779]
[1741926344518,0.31346032,82178.0,82177.0,0.0083382]
[1741926345090,0.39446032,82178.0,82177.0,0.0083382]
[1741926345295,0.56393016,82178.0,82177.0,0.0083382]
[1741926345969,0.56393016,82178.0,82177.0,2e-07]
[1741926346381,0.56393016,82178.0,82177.0,0.0003384]
[1741926346595,0.56393016,82178.0,82177.0,0.0003382]
[1741926347352,0.556607,82157.0,82153.0,0.0003382]
[1741926348749,0.338199,82160.0,82156.0,0.0802382]
[1741926348750,0.001,82160.0,82156.0,0.0802382]
[1741926348948,0.255607,82158.0,82156.0,0.0802382]
[1741926349192,0.013171,82157.0,82156.0,0.0023382]
[1741926349448,0.013171,82157.0,82156.0,0.0013382]
[1741926349692,0.013171,82157.0,82156.0,0.0003382]
[1741926349901,0.013171,82157.0,82156.0,0.0013382]
[1741926350052,0.013171,82157.0,82156.0,0.0003382]
[1741926351012,0.02775925,82157.0,82156.0,0.0003382]
[1741926351513,0.013171,82157.0,82156.0,0.0003382]
[1741926351679,0.013171,82157.0,82156.0,0.0063382]
[1741926354698,0.02748365,82157.0,82156.0,0.0063382]
[1741926354882,0.013171,82157.0,82156.0,0.0063382]
[1741926356581,0.0270967,82157.0,82156.0,0.0063382]
[1741926357537,0.312171,82162.0,82156.0,0.0063382]
[1741926357538,0.001,82168.0,82158.0,0.012171]
[1741926357742,0.243408,82167.0,82159.0,0.02279867]
[1741926358089,0.243425,82161.0,82156.0,0.1347382]
[1741926358263,0.012171,82162.0,82157.0,0.01062767]
[1741926358459,0.2556,82160.0,82157.0,0.01062767]
[1741926358673,0.012171,82158.0,82157.0,0.01062767]
[1741926359701,0.243432,82159.0,82157.0,0.01062767]
[1741926359898,0.243429,82160.0,82157.0,0.01062767]
[1741926360244,0.243429,82160.0,82157.0,0.01362767]
[1741926360440,0.243429,82160.0,82157.0,0.01062767]
[1741926360688,0.243429,82160.0,82157.0,0.01362767]
[1741926361448,0.243429,82160.0,82157.0,0.01062767]
[1741926361597,0.243429,82160.0,82157.0,0.25606367]
[1741926361945,0.243412,82166.0,82158.0,0.243431]
[1741926362278,0.25659,82163.0,82157.0,0.259607]
[1741926362491,0.243426,82161.0,82158.0,0.01059697]
[1741926362891,0.255593,82162.0,82158.0,0.01059697]
[1741926363340,0.255593,82162.0,82158.0,0.01159697]
[1741926363685,0.255593,82162.0,82158.0,0.01059697]
[1741926364050,0.243425,82161.0,82158.0,0.01259697]
[1741926364233,0.255593,82162.0,82158.0,0.01259697]
[1741926364718,0.013171,82159.0,82158.0,0.01359697]
[1741926364833,0.013171,82159.0,82158.0,0.13904]
[1741926365041,0.1155091,82159.0,82158.0,0.002]
[1741926365242,0.1155091,82159.0,82158.0,0.004]
[1741926365243,0.313171,82159.0,82158.0,0.004]
[1741926365455,0.313171,82159.0,82158.0,0.002]
[1741926366089,0.313171,82157.0,82156.0,0.0003382]
[1741926368863,0.314171,82157.0,82156.0,0.0003382]
[1741926369293,0.313171,82157.0,82156.0,0.0003382]
[1741926369468,0.3542484,82157.0,82156.0,0.0003382]
[1741926369976,0.313171,82157.0,82156.0,0.0003382]
[1741926370269,0.314171,82157.0,82156.0,0.0003382]
[1741926372403,0.32313911,82157.0,82156.0,0.0003382]
[1741926375336,0.40053911,82157.0,82156.0,0.0003382]
[1741926375835,0.32313911,82157.0,82156.0,0.0003382]
[1741926376257,0.4431,82157.0,82156.0,0.0003382]
[1741926376819,0.32313911,82157.0,82156.0,0.0003382]
[1741926377771,0.37330896,82157.0,82124.0,0.0818]
[1741926377930,0.37330896,82157.0,82119.0,0.0818]
[1741926377931,0.001,82120.0,82119.0,0.0818]
[1741926378140,0.256723,82120.0,82119.0,0.09074544]
[1741926378353,0.256723,82120.0,82119.0,0.0818]
[1741926378695,0.27087286,82120.0,82119.0,0.0818]
[1741926379067,0.255731,82117.0,82115.0,0.13616]
[1741926379702,0.255731,82117.0,82116.0,0.13674005]
[1741926380125,0.255731,82117.0,82116.0,0.00058005]
[1741926380328,0.255731,82117.0,82116.0,0.14074005]
[1741926380509,0.255731,82117.0,82116.0,0.14968549]
[1741926381707,0.256731,82117.0,82116.0,0.14968549]
[1741926382215,0.256731,82117.0,82116.0,0.15468549]
[1741926382410,0.255731,82117.0,82116.0,0.15468549]
[1741926382623,0.255731,82117.0,82116.0,0.15068549]
[1741926382824,0.243554,82117.0,82116.0,0.14568549]
[1741926383121,0.243554,82117.0,82116.0,0.15168549]
[1741926384062,0.001,82118.0,82116.0,0.15168549]
[1741926384263,0.001,82123.0,82119.0,0.243547]
[1741926384448,0.001,82123.0,82117.0,0.0819]
[1741926384667,0.001,82123.0,82120.0,0.00913132]
[1741926384866,0.001,82123.0,82117.0,0.0819]
[1741926385076,0.243542,82122.0,82121.0,0.00913132]
[1741926385281,0.243542,82122.0,82117.0,0.0819]
[1741926385411,0.255719,82122.0,82121.0,0.00913088]
[1741926385618,0.243545,82121.0,82117.0,0.0819]
[1741926385999,0.243545,82121.0,82119.0,0.001]
[1741926386247,0.255722,82121.0,82119.0,0.001]
[1741926386620,0.24355,82119.0,82117.0,0.0819]
[1741926386743,0.24355,82119.0,82117.0,0.0839]
[1741926388012,0.24355,82119.0,82117.0,0.0819]
[1741926389001,0.24355,82119.0,82117.0,0.0839]
[1741926389204,0.21338196,82120.0,82117.0,0.0859]
[1741926389882,0.012177,82121.0,82117.0,0.0859]
[1741926390307,0.012177,82121.0,82117.0,0.0839]
[1741926391432,0.012177,82121.0,82117.0,0.0859]
[1741926391610,0.012177,82121.0,82117.0,0.0839]
[1741926391955,0.013176,82123.0,82117.0,0.0859]
[1741926392087,0.243541,82122.0,82117.0,0.329452]
[1741926392438,0.243541,82122.0,82117.0,0.327452]
[1741926392927,0.243541,82122.0,82118.0,0.24355]
[1741926393361,0.013176,82123.0,82118.0,0.24355]
[1741926394134,0.243541,82122.0,82118.0,0.02470607]
[1741926394402,0.243544,82121.0,82118.0,0.001]
[1741926394708,0.243547,82120.0,82117.0,0.0839]
[1741926394916,0.255724,82120.0,82119.0,0.00912364]
[1741926395124,0.013177,82117.0,82116.0,0.00058005]
[1741926395332,0.012177,82117.0,82116.0,0.13666005]
[1741926396556,0.255725,82120.0,82116.0,0.13666005]
[1741926396870,0.25573,82118.0,82116.0,0.13666005]
[1741926397305,0.25573,82118.0,82116.0,0.13966005]
[1741926397533,0.243521,82129.0,82116.0,0.13966005]
[1741926397731,0.243544,82121.0,82116.0,0.13666005]
[1741926397963,0.243544,82121.0,82116.0,0.14166005]
[1741926398111,0.243544,82121.0,82116.0,0.15383705]
[1741926398317,0.012177,82122.0,82116.0,0.39739305]
[1741926398518,0.012177,82122.0,82116.0,0.39439305]
[1741926398721,0.243544,82121.0,82116.0,0.13866005]
[1741926398930,0.243547,82120.0,82116.0,0.13866005]
[1741926399448,0.24355,82119.0,82116.0,0.13866005]
[1741926399945,0.24355,82119.0,82116.0,0.13666005]
[1741926400346,0.24355,82119.0,82116.0,0.13866005]
[1741926400554,0.24355,82119.0,82116.0,0.13666005]
[1741926400853,0.24355,82119.0,82116.0,0.13866005]
[1741926401151,0.24355,82119.0,82116.0,0.14066005]
[1741926401422,0.243553,82118.0,82116.0,0.14066005]
[1741926401747,0.243553,82118.0,82116.0,0.13866005]
[1741926402583,0.25573,82118.0,82116.0,0.14066005]
[1741926403111,0.255727,82119.0,82116.0,0.13666005]
[1741926403307,0.255727,82119.0,82116.0,0.13866005]
[1741926404366,0.255731,82118.0,82116.0,0.13666005]
[1741926404479,0.255731,82118.0,82116.0,0.14166005]
[1741926404888,0.255731,82118.0,82116.0,0.13866005]
[1741926405447,0.255731,82118.0,82116.0,0.14066005]
[1741926405998,0.255725,82120.0,82116.0,0.14066005]
[1741926406254,0.24355,82119.0,82116.0,0.14066005]
[1741926406461,0.24355,82119.0,82116.0,0.13866005]
[1741926406863,0.255727,82119.0,82116.0,0.13666005]
[1741926407158,0.255727,82119.0,82116.0,0.13866005]
[1741926407357,0.01907827,82119.0,82116.0,0.15083705]
[1741926407683,0.01907827,82119.0,82117.0,0.243554]
[1741926408239,0.01907827,82119.0,82116.0,0.15383705]
[1741926408471,0.01907827,82119.0,82116.0,0.39439305]
[1741926409807,0.01907827,82119.0,82117.0,0.00915086]
[1741926410688,0.01907827,82119.0,82117.0,0.01115086]
[1741926411507,0.01907827,82119.0,82117.0,0.01315086]
[1741926411797,0.03125527,82119.0,82117.0,0.01315086]
[1741926412499,0.27480527,82119.0,82117.0,0.01315086]
[1741926412701,0.01907827,82119.0,82118.0,0.0802]
[1741926413258,0.01907827,82119.0,82118.0,0.08935086]
[1741926414299,0.01907827,82119.0,82118.0,0.09335086]
[1741926416646,0.06260766,82121.0,82118.0,0.09335086]
[1741926417745,0.06260766,82121.0,82118.0,0.08935086]
[1741926417961,0.06260766,82121.0,82118.0,0.09335086]
[1741926418134,0.012177,82119.0,82118.0,0.09335086]
[1741926419168,0.012177,82119.0,82118.0,0.09135086]
[1741926419637,0.243538,82123.0,82118.0,0.09335086]
[1741926419834,0.243527,82127.0,82120.0,0.243544]
[1741926420335,0.01907791,82131.0,82122.0,0.24354]
[1741926420470,0.01907791,82131.0,82123.0,0.388213]
[1741926420680,0.01379714,82130.0,82123.0,0.39736161]
[1741926421327,0.01379714,82130.0,82123.0,0.53344161]
[1741926421770,0.25731414,82130.0,82123.0,0.53744161]
[1741926421950,0.243523,82128.0,82123.0,0.28172861]
[1741926422148,0.243533,82125.0,82123.0,0.28172861]
[1741926422734,0.255704,82126.0,82123.0,0.28172861]
[1741926423094,0.255704,82126.0,82123.0,0.28572861]
[1741926423429,0.255704,82126.0,82123.0,0.28172861]
[1741926423855,0.255708,82125.0,82123.0,0.28172861]
[1741926424278,0.255708,82125.0,82123.0,0.27772861]
[1741926424524,0.255708,82125.0,82123.0,0.28072861]
[1741926424798,0.0123452,82124.0,82123.0,0.28072861]
[1741926424996,0.0001692,82124.0,82123.0,0.28372861]
[1741926427538,0.0123452,82124.0,82123.0,0.01514861]
[1741926427745,0.0123452,82124.0,82123.0,0.15122861]
[1741926427897,0.0123452,82124.0,82123.0,0.14208]
[1741926428311,0.0123452,82124.0,82123.0,0.15121674]
[1741926428733,0.0123452,82124.0,82123.0,0.14821674]
[1741926429248,0.0123452,82124.0,82123.0,0.15021674]
[1741926430915,0.03142226,82124.0,82123.0,0.15021674]
[1741926431739,0.03142226,82124.0,82123.0,0.01413674]
[1741926431947,0.03142226,82124.0,82123.0,0.15021674]
[1741926432462,0.01924626,82124.0,82123.0,0.15021674]
[1741926433368,0.03142226,82124.0,82123.0,0.15021674]
[1741926434626,0.03142226,82124.0,82123.0,0.14108]
[1741926434930,0.03142226,82124.0,82123.0,0.14998991]
[1741926435744,0.01924626,82124.0,82123.0,0.14998991]
[1741926440312,0.01924626,82124.0,82123.0,0.16216591]
[1741926440511,0.01924626,82124.0,82123.0,0.29538354]
[1741926440843,0.0001692,82124.0,82123.0,0.29416591]
[1741926441473,0.0001692,82124.0,82123.0,0.28916591]
[1741926441668,0.0001692,82124.0,82123.0,0.29416591]
[1741926442095,0.0001692,82124.0,82123.0,0.29216591]
[1741926442290,0.0001692,82124.0,82123.0,0.29316591]
[1741926442737,0.0001692,82124.0,82123.0,0.29816591]
[1741926465014,2e-07,82124.0,82123.0,0.43240775]
[1741926465161,2e-07,82124.0,82123.0,1.1569076]
[1741926465367,2e-07,82124.0,82123.0,2.6569076]
[1741926466730,2e-07,82124.0,82123.0,3.3495076]
[1741926467011,2e-07,82124.0,82123.0,3.3995076]
[1741926467215,2e-07,82124.0,82123.0,3.4055076]
[1741926467553,2e-07,82124.0,82123.0,3.3555076]
[1741926467752,2e-07,82124.0,82123.0,3.3495076]
[1741926467995,2e-07,82124.0,82123.0,3.3465076]
[1741926468374,2e-07,82124.0,82123.0,3.3575076]
[1741926468579,2e-07,82124.0,82123.0,1.8575076]
[1741926470504,2e-07,82124.0,82123.0,1.9075076]
[1741926471522,2e-07,82124.0,82123.0,1.8575076]
[1741926471722,2e-07,82124.0,82123.0,1.9075076]
[1741926472680,2e-07,82124.0,82123.0,1.8575076]
[1741926472987,2e-07,82124.0,82123.0,1.9075076]
[1741926475250,2e-07,82124.0,82123.0,1.8575076]
[1741926476054,2e-07,82124.0,82123.0,1.9075076]
[1741926477470,2e-07,82124.0,82123.0,1.9078458]
[1741926478136,0.01907172,82144.0,82143.0,0.38315]
[1741926478346,0.0001691,82157.0,82156.0,0.25561]
[1741926478561,0.0001691,82157.0,82156.0,0.33411]
[1741926478713,0.0001691,82157.0,82156.0,0.34279991]
[1741926479543,0.00029227,82157.0,82156.0,0.34279991]
[1741926479743,0.00029227,82157.0,82156.0,0.00868991]
[1741926479944,0.00029227,82157.0,82156.0,0.25212891]
[1741926480165,0.00029227,82157.0,82156.0,0.26929821]
[1741926480350,0.00029227,82157.0,82156.0,0.27429821]
[1741926480729,0.00029227,82157.0,82156.0,0.01868821]
[1741926482224,0.00029227,82157.0,82156.0,0.03085921]
[1741926482782,0.00029227,82157.0,82156.0,0.16685921]
[1741926483182,0.00029227,82157.0,82156.0,0.15468821]
[1741926483793,0.01246327,82157.0,82156.0,0.01868821]
[1741926483993,0.01246327,82157.0,82156.0,0.146]
[1741926484170,0.01246327,82157.0,82156.0,0.01]
[1741926484392,0.01246327,82157.0,82156.0,0.146]
[1741926484591,0.01246327,82157.0,82156.0,0.15460969]
[1741926484796,0.00029227,82157.0,82156.0,0.15460969]
[1741926485173,0.4479141,82157.0,82156.0,0.01231739]
[1741926485374,0.4479141,82157.0,82129.0,0.136]
[1741926485375,0.255666,82139.0,82129.0,0.136]
[1741926485577,0.012175,82135.0,82130.0,0.00862131]
[1741926485796,0.255678,82135.0,82130.0,0.00862131]
[1741926486002,0.243513,82131.0,82130.0,0.00862131]
[1741926486174,0.255688,82131.0,82130.0,0.00862131]
[1741926486378,0.012175,82130.0,82129.0,0.136]
[1741926487168,0.012175,82130.0,82129.0,0.13641095]
[1741926487369,0.243513,82131.0,82129.0,0.14503226]
[1741926487608,0.01907555,82131.0,82129.0,0.14503226]
[1741926487816,0.01907555,82131.0,82130.0,0.012175]
[1741926488419,0.01907555,82131.0,82130.0,0.02079631]
[1741926488863,0.01907555,82131.0,82130.0,0.02201379]
[1741926488984,0.012174,82142.0,82134.0,0.012175]
[1741926489185,0.01907502,82140.0,82138.0,0.012174]
[1741926489428,0.01907502,82140.0,82139.0,0.00862131]
[1741926489832,0.01907502,82140.0,82139.0,0.02079531]
[1741926490225,0.26256102,82140.0,82139.0,0.00862131]
[1741926490425,0.01907502,82140.0,82138.0,0.002]
[1741926490845,0.01907502,82140.0,82139.0,0.00862131]
[1741926491442,0.01907502,82140.0,82139.0,0.01162131]
[1741926492377,0.01907502,82140.0,82139.0,0.25811031]
[1741926492593,0.01907502,82140.0,82139.0,0.01462131]
[1741926494884,0.01907502,82140.0,82139.0,0.03927942]
[1741926495377,0.01907502,82140.0,82139.0,0.17527942]
[1741926501459,0.01907502,82140.0,82139.0,0.17561762]
[1741926509377,0.01907502,82140.0,82139.0,0.15095951]
[1741926510051,0.23645525,82144.0,82139.0,0.15095951]
[1741926510649,0.243479,82143.0,82139.0,0.15095951]
[1741926511361,0.24862825,82144.0,82139.0,0.39144651]
[1741926511521,0.24862825,82144.0,82139.0,0.39344651]
[1741926511923,0.24862825,82144.0,82139.0,0.38844651]
[1741926512126,0.24862825,82144.0,82139.0,0.14695951]
[1741926512351,0.32601781,82145.0,82140.0,0.243486]
[1741926512766,0.243475,82144.0,82141.0,0.00877357]
[1741926513153,0.243475,82144.0,82139.0,0.1363382]
[1741926513358,0.255648,82144.0,82142.0,0.00877357]
[1741926513563,0.255648,82144.0,82139.0,0.3798262]
[1741926513765,0.255648,82144.0,82143.0,0.00877357]
[1741926513962,0.255648,82144.0,82140.0,0.002]
[1741926514533,0.32601781,82145.0,82141.0,0.00877357]
[1741926515160,0.0001691,82144.0,82141.0,0.00877357]
[1741926515583,0.0001691,82144.0,82142.0,0.002]
[1741926516007,0.0001691,82144.0,82143.0,0.00877357]
[1741926517193,0.0001691,82144.0,82143.0,0.002]
[1741926517318,0.0001691,82144.0,82143.0,0.01077357]
[1741926518349,0.0123421,82144.0,82143.0,0.01077357]
[1741926518896,0.0123421,82144.0,82143.0,0.002]
[1741926519255,0.0123421,82144.0,82143.0,0.004]
[1741926519454,0.0123421,82144.0,82143.0,0.01277372]
[1741926519664,0.0001691,82144.0,82143.0,0.004]
[1741926519858,0.0001691,82144.0,82143.0,0.01278246]
[1741926522113,0.012169,82171.0,82155.0,0.255614]
[1741926522393,0.01217,82168.0,82155.0,0.469714]
[1741926522566,0.38466804,82170.0,82155.0,0.47849226]
[1741926522705,0.01217,82169.0,82155.0,0.47849226]
[1741926522909,0.3,82169.0,82155.0,0.47849226]
[1741926523502,0.00024907,82156.0,82155.0,0.48249226]
[1741926525053,0.00024907,82156.0,82155.0,0.47849226]
[1741926525201,0.00024907,82156.0,82155.0,0.50632738]
[1741926525755,0.00024907,82156.0,82155.0,0.51032738]
[1741926526103,0.2557151,82177.0,82166.0,0.243407]
[1741926526498,0.27463351,82172.0,82167.0,0.25218226]
[1741926526694,0.255563,82172.0,82167.0,0.25218226]
[1741926527328,0.2557151,82177.0,82169.0,0.243397]
[1741926527538,0.0001691,82177.0,82176.0,0.24338]
[1741926528088,0.0001691,82177.0,82176.0,0.00869349]
[1741926528490,0.0001691,82177.0,82174.0,0.243383]
[1741926528700,0.0001691,82177.0,82176.0,0.00868719]
[1741926528911,0.00024898,82177.0,82175.0,0.24338]
[1741926529121,0.30024898,82177.0,82176.0,0.00868719]
[1741926529324,0.32596644,82177.0,82176.0,0.00968719]
[1741926529529,0.32596644,82177.0,82176.0,0.01068719]
[1741926529741,0.32596644,82177.0,82176.0,0.001]
[1741926529977,0.012169,82174.0,82169.0,0.136]
[1741926530323,0.012169,82174.0,82170.0,0.00868719]
[1741926530662,0.255557,82173.0,82169.0,0.136]
[1741926530879,0.255557,82173.0,82171.0,0.00868719]
[1741926531086,0.255557,82173.0,82169.0,0.136]
[1741926531674,0.255557,82173.0,82170.0,0.00868719]
[1741926532075,0.255557,82173.0,82169.0,0.379399]
[1741926532286,0.255557,82173.0,82171.0,0.00868719]
[1741926532500,0.012169,82174.0,82172.0,0.00868719]
[1741926532751,0.56245282,82175.0,82169.0,0.391569]
[1741926532752,0.31906882,82175.0,82169.0,0.391569]
[1741926532887,0.31906882,82175.0,82173.0,0.00868719]
[1741926533097,0.31906882,82175.0,82170.0,0.002]
[1741926533294,0.31906882,82175.0,82171.0,0.00868719]
[1741926533512,0.01906882,82175.0,82171.0,0.01068719]
[1741926534523,0.3,82173.0,82171.0,0.01068719]
[1741926535062,0.3,82173.0,82171.0,0.00868719]
[1741926535444,0.3,82173.0,82169.0,0.391569]
[1741926535784,0.3,82173.0,82172.0,0.001]
[1741926535785,0.312169,82173.0,82172.0,0.001]
[1741926536301,0.312169,82173.0,82172.0,0.00858128]
[1741926537264,0.3,82173.0,82172.0,0.00858128]
[1741926537505,0.3,82173.0,82172.0,0.01058128]
[1741926537705,0.3,82173.0,82172.0,0.002]
[1741926537907,0.3,82173.0,82172.0,0.01058128]
[1741926538369,0.03123782,82175.0,82172.0,0.01058128]
[1741926538560,0.03123782,82175.0,82172.0,0.01258128]
[1741926538851,0.3,82174.0,82172.0,0.01258128]
[1741926539249,0.3,82174.0,82172.0,0.01058128]
[1741926539451,0.3,82174.0,82172.0,0.00858128]
[1741926539659,0.3,82174.0,82172.0,0.01058128]
[1741926539881,0.3,82174.0,82172.0,0.00958128]
[1741926540070,0.000169,82173.0,82172.0,0.00958128]
[1741926540281,0.000169,82173.0,82172.0,0.01058128]
[1741926540698,0.000169,82173.0,82172.0,0.00958128]
[1741926541087,0.000169,82173.0,82172.0,0.01058128]
[1741926541470,0.000169,82173.0,82172.0,0.02275028]
[1741926541666,0.000169,82173.0,82172.0,0.02175028]
[1741926541875,0.000169,82173.0,82172.0,0.02375028]
[1741926542382,0.000169,82173.0,82172.0,0.02275028]
[1741926542920,0.000169,82173.0,82172.0,0.02475028]
[1741926544494,0.000169,82173.0,82172.0,0.10505028]
[1741926547632,0.000169,82173.0,82172.0,0.15435028]
[1741926548432,0.000169,82173.0,82172.0,0.15556714]
[1741926549199,0.000169,82173.0,82172.0,0.15356714]
[1741926549406,0.000169,82173.0,82172.0,0.15035028]
[1741926549599,0.000169,82173.0,82172.0,0.15635028]
[1741926549802,0.000169,82173.0,82172.0,0.16235028]
[1741926551582,0.000169,82173.0,82172.0,0.16356703]
[1741926552086,0.000169,82173.0,82172.0,0.16235028]
[1741926552665,0.000169,82173.0,82172.0,0.16356703]
[1741926555237,0.000169,82173.0,82172.0,0.16235028]
[1741926557098,0.000169,82173.0,82172.0,0.16356703]
[1741926559482,0.000169,82173.0,82172.0,0.17810788]
[1741926560934,0.000169,82173.0,82172.0,0.17210788]
[1741926561311,0.000169,82173.0,82172.0,0.17810788]
[1741926561522,0.000169,82173.0,82172.0,0.17210788]
[1741926561733,0.000169,82173.0,82172.0,0.18532476]
[1741926561934,0.000169,82173.0,82172.0,0.19132476]
[1741926563086,0.000169,82173.0,82172.0,0.32724476]
[1741926563287,0.000169,82173.0,82172.0,0.32602801]
[1741926564958,0.000169,82173.0,82172.0,0.74552786]
[1741926565158,0.000169,82173.0,82172.0,0.73098701]
[1741926566390,0.000169,82173.0,82172.0,0.73231098]
[1741926571332,0.3,82194.0,82190.0,0.012166]
[1741926571542,0.3,82194.0,82191.0,0.379215]
[1741926571740,0.3,82194.0,82192.0,0.00838533]
[1741926572094,0.31049367,82194.0,82192.0,0.00838533]
[1741926572473,0.01049367,82194.0,82192.0,0.00838533]
[1741926572830,0.3,82195.0,82192.0,0.25171533]
[1741926573051,0.3,82195.0,82192.0,0.25371533]
[1741926573571,0.30007987,82197.0,82192.0,0.26588133]
[1741926573772,0.3,82195.0,82192.0,0.00838533]
[1741926574555,0.543325,82195.0,82192.0,0.00838533]
[1741926574751,0.55371786,82195.0,82192.0,0.00838533]
[1741926574983,0.55388686,82195.0,82192.0,0.00838533]
[1741926575223,0.55388686,82195.0,82192.0,0.01038533]
[1741926575383,0.55388686,82195.0,82192.0,0.01138533]
[1741926576971,0.26616005,82194.0,82192.0,0.01138533]
[1741926577512,0.02283205,82194.0,82192.0,0.01138533]
[1741926577940,0.02283205,82193.0,82192.0,0.00938533]
[1741926578319,0.02283205,82193.0,82192.0,0.01038533]
[1741926578777,0.02283205,82193.0,82192.0,0.01238533]
[1741926578973,0.02283205,82193.0,82192.0,0.01038533]
[1741926579166,0.02283205,82193.0,82192.0,0.00838533]
[1741926579378,0.02283205,82193.0,82192.0,0.01038533]
[1741926580358,0.02283205,82193.0,82192.0,0.01238533]
[1741926580573,0.03499805,82193.0,82192.0,0.01238533]
[1741926581668,0.02283205,82193.0,82192.0,0.01238533]
[1741926583136,0.32283205,82193.0,82192.0,0.01238533]
[1741926584762,0.02283205,82193.0,82192.0,0.01238533]
[1741926587461,0.02283205,82193.0,82192.0,0.25571733]
[1741926587826,0.02283205,82193.0,82192.0,0.26788333]
[1741926590137,0.02260974,82193.0,82192.0,0.26788333]
[1741926594645,0.02260974,82193.0,82192.0,0.34718333]
[1741926597716,0.02260974,82193.0,82192.0,0.34718333]
[1741926599071,0.03477574,82193.0,82192.0,0.14826533]
[1741926599273,0.27810474,82193.0,82192.0,0.14826533]
[1741926599491,0.27810474,82193.0,82192.0,0.14860353]
[1741926603071,0.27810474,82193.0,82192.0,0.14460353]
[1741926603425,0.27810474,82193.0,82192.0,0.14860353]
[1741926604151,0.27810474,82193.0,82192.0,0.14660353]
[1741926605429,0.57810474,82193.0,82192.0,0.01072353]
[1741926605624,0.68932949,82193.0,82192.0,0.01272353]
[1741926605823,0.57810474,82193.0,82192.0,0.01272353]
[1741926606768,0.57810474,82193.0,82192.0,0.01072353]
[1741926606940,0.57810474,82193.0,82192.0,0.00872353]
[1741926608497,0.555495,82193.0,82192.0,0.00872353]
[1741926609052,0.57455867,82193.0,82192.0,0.00872353]
[1741926612477,0.57472787,82193.0,82192.0,0.00872353]
[1741926612698,0.31923287,82193.0,82192.0,0.00872353]
[1741926612978,0.3001692,82193.0,82192.0,0.02088953]
[1741926613143,0.0001692,82193.0,82192.0,0.10408953]
[1741926613372,0.0001692,82193.0,82192.0,0.12870188]
[1741926613590,0.0001692,82193.0,82192.0,0.17680188]
[1741926614042,0.0001692,82193.0,82192.0,0.17780188]
[1741926614699,0.0001692,82193.0,82192.0,0.17680188]
[1741926614941,0.01074986,82198.0,82192.0,0.17680188]
[1741926614942,0.3,82206.0,82201.0,0.012165]
[1741926615181,0.3,82206.0,82202.0,0.14782269]
[1741926615408,0.3,82206.0,82203.0,0.243298]
[1741926615823,0.543291,82206.0,82202.0,0.13588]
[1741926616029,0.555465,82203.0,82202.0,0.13588]
[1741926616230,0.3,82203.0,82202.0,0.13588]
[1741926616440,0.01906065,82206.0,82202.0,0.472945]
[1741926616646,0.01906065,82206.0,82205.0,0.255458]
[1741926617240,0.012165,82203.0,82202.0,0.13588]
[1741926619315,0.0349569,82203.0,82202.0,0.13588]
[1741926621638,0.0349569,82203.0,82202.0,0.14407615]
[1741926624783,0.0349569,82203.0,82202.0,0.14441435]
[1741926625968,0.0227919,82203.0,82202.0,0.14441435]
[1741926626423,0.0349569,82203.0,82202.0,0.14437435]
[1741926626738,0.0349569,82203.0,82202.0,0.1361782]
[1741926628647,0.0227919,82203.0,82202.0,0.1361782]
[1741926628836,0.0227919,82203.0,82202.0,0.2273432]
[1741926629190,0.0227919,82203.0,82202.0,0.23553701]
[1741926630022,0.0001691,82206.0,82205.0,0.012164]
[1741926630225,0.0001691,82206.0,82205.0,0.057264]
[1741926630596,0.0001691,82206.0,82205.0,0.38516819]
[1741926630829,0.0001691,82206.0,82205.0,0.38395181]
[1741926631800,0.0001691,82206.0,82205.0,0.38595181]
[1741926632203,0.0001691,82206.0,82205.0,0.38395181]
[1741926632407,0.0001691,82206.0,82205.0,0.38895181]
[1741926632920,0.02293688,82206.0,82205.0,0.41832985]
[1741926633500,0.02293688,82206.0,82205.0,0.55416985]
[1741926633905,0.0001691,82206.0,82205.0,0.55416985]
[1741926635320,0.0001691,82206.0,82205.0,0.29871185]
[1741926635525,0.0001691,82206.0,82205.0,0.55416985]
[1741926636187,0.02292895,82206.0,82205.0,0.55416985]
[1741926636396,0.02292895,82206.0,82205.0,0.54416985]
[1741926636612,0.02292895,82206.0,82205.0,0.55216985]
[1741926637224,0.02292895,82206.0,82205.0,0.30887585]
[1741926637529,0.02292895,82206.0,82205.0,0.29671185]
[1741926637530,0.0001691,82206.0,82205.0,0.29671185]
[1741926638260,0.0001691,82206.0,82205.0,0.29667185]
[1741926638481,0.0123331,82206.0,82205.0,0.17637185]
[1741926638679,0.0001691,82206.0,82205.0,0.17637185]
[1741926639223,0.0001691,82206.0,82205.0,0.17237185]
[1741926639432,0.0001691,82206.0,82205.0,0.16837185]
[1741926639658,0.0001691,82206.0,82205.0,0.17137185]
[1741926639859,0.0001691,82206.0,82205.0,0.17437185]
[1741926640290,0.012164,82206.0,82205.0,0.01419381]
[1741926640438,0.012164,82206.0,82205.0,0.14999381]
[1741926641094,0.012164,82206.0,82205.0,0.14699381]
[1741926641365,0.012164,82206.0,82205.0,0.1398]
[1741926641569,0.03122514,82206.0,82205.0,0.1398]
[1741926642150,0.03122514,82206.0,82205.0,0.1368]
[1741926642730,0.03122514,82206.0,82205.0,0.1378]
[1741926644505,0.3,82206.0,82205.0,0.1378]
[1741926645419,0.012164,82206.0,82205.0,0.1378]
[1741926649466,0.03122425,82206.0,82205.0,0.1378]
[1741926649820,0.03139335,82206.0,82205.0,0.1378]
[1741926661664,0.03139335,82206.0,82205.0,0.1381382]